[Event "2nd Serbia Open Masters 2022"]
[Site "Novi Sad"]
[Date "2022.06.28"]
[Round "1.45"]
[White "Janzelj, Tim"]
[Black "Baasansuren, Erdene"]
[Result "0-1"]
[ECO "D35"]
[WhiteElo "2470"]
[BlackElo "2243"]
[Annotator "TA"]
[PlyCount "170"]
[EventDate "2022.06.28"]
[EventType "swiss"]
[EventCountry "SRB"]
[SourceTitle "playchess.com"]
[Source "ChessBase"]
[SourceQuality "1"]
[TimeControl "40/5400+30:900+30"]

{[%evp 16,170,24,18,10,10,8,6,9,12,19,18,20,8,22,0,0,0,0,0,-15,0,0,0,0,0,71,79,82,12,46,20,70,47,85,70,89,78,114,98,130,122,290,91,104,72,72,81,87,80,104,58,48,34,87,91,91,33,100,104,92,44,27,25,28,30,35,29,27,24,28,17,39,4,12,0,25,0,0,0,0,0,0,0,0,0,0,0,0,0,0,0,8,0,0,0,42,50,41,52,48,32,101,66,227,224,256,254,362,353,493,459,382,143,145,137,141,152,138,26,37,8,176,172,188,162,418,382,386,339,624,598,1382,1153,1598,1584,1111,1481,1381,1143,942,1345,2171,2004,2073,2237,29967,6609,29979,29980,29979,29981,29983,29984,29987,29988,29991]} 1. d4 {[%emt 0:00:04]} d5 {[%emt 0:00:12]} 2. c4 {[%emt 0:00:08]} e6 {[%emt 0:00:07]} 3. Nf3 {[%emt 0:00:37]} Nf6 {[%emt 0:00:45]} 4. Nc3 {[%emt 0:00:18]} Nbd7 {[%emt 0:00:18]} 5. cxd5 {[%emt 0:08:44]} exd5 {[%emt 0:00:20]} 6. Bg5 {[%emt 0:00:09]} c6 {[%emt 0:01:07]} 7. e3 {[%emt 0:00:08]} Be7 {[%emt 0:00:36]} 8. Bd3 {[%emt 0:00:27]} h6 {[%emt 0:00:44]} 9. Bf4 {[%emt 0:01:26]} Nh5 {[%emt 0:05:15] D35: Queen's Gambit Declined: Exchange Variation.} 10. O-O {[%emt 0:00:35]} Nxf4 {[%emt 0:19:15]} 11. exf4 {[%emt 0:00:04]} O-O {[%emt 0:00:39] The position is equal.} 12. Re1 {[%emt 0:09:43]} Bd6 {[%emt 0:08:02]} (12... Re8 {feels hotter.} 13. Ne5 Bd6 14. Re3 Qh4) 13. Ne5 {[%emt 0:00:52]} Qf6 {[%emt 0:03:15]} 14. g3 {[%emt 0:08:00] [#]} g6 $146 {[%emt 0:17:44]} ({Predecessor:} 14... Nb6 15. Qh5 Re8 16. Nxf7 Rxe1+ 17. Rxe1 Bd7 18. Bg6 Nc4 19. Ne5 Bxe5 20. dxe5 Qe7 {1-0 (37) Le Goff,R (2041)-Duboue,P (2207) Cholet 2012}) 15. Qb3 {[%emt 0:14:05]} Rd8 {[%emt 0:03:13]} 16. Ne4 {[%emt 0:09:19]} dxe4 {[%emt 0:22:41]} 17. Nxf7 $1 {[%emt 0:00:19]} Kg7 {[%emt 0:00:02]} 18. Nxd8 {[%emt 0:00:26]} Qxd8 {[%emt 0:00:16]} 19. Bxe4 {[%emt 0:01:06]} Nf6 {[%emt 0:01:31]} 20. d5 {[%emt 0:05:59]} cxd5 {[%emt 0:10:09]} (20... c5 $11) 21. Bxd5 $16 {[%emt 0:00:22]} Qb6 {[%emt 0:03:13]} 22. Bf3 {[%emt 0:10:47]} (22. Qxb6 $1 $16 axb6 23. Be6) 22... Bb4 {[%emt 0:00:18]} 23. Re5 {[%emt 0:03:31] Black must now prevent a3.} Bg4 {[%emt 0:00:44]} (23... Bf5 $11) 24. Rf1 {[%emt 0:03:36]} Bxf3 {[%emt 0:01:27]} 25. Qxf3 {[%emt 0:00:03]} Rd8 {[%emt 0:00:28]} 26. a3 {[%emt 0:05:30]} Bc5 {[%emt 0:00:29]} 27. Rc1 {[%emt 0:00:08]} Bd6 {[%emt 0:00:34]} 28. Re6 {[%emt 0:04:52] aiming for Qc3.} Kf7 $2 {[%emt 0:00:16]} (28... Qxb2 $2 29. Rd1 $18) (28... Rd7 $16) 29. Re2 $2 {[%emt 0:00:42]} (29. f5 $18) 29... Be7 {[%emt 0:00:45]} 30. b4 {[%emt 0:02:08]} Rd7 {[%emt 0:00:14]} 31. Qb3+ {[%emt 0:00:36]} Kg7 {[%emt 0:00:20]} 32. Qb2 {[%emt 0:05:17]} Kf7 {[%emt 0:00:51]} 33. Rce1 {[%emt 0:01:23]} ({Better is} 33. Qa2+ $16 Kg7 34. Rd2) 33... Qd6 $14 {[%emt 0:00:33]} 34. Qb3+ {[%emt 0:00:46]} Kf8 {[%emt 0:00:33]} (34... Qd5 $1 $14 35. Qxd5+ Nxd5) 35. Re6 $16 {[%emt 0:00:52]} Qd4 {[%emt 0:00:02]} 36. R6e3 {[%emt 0:02:34]} ({White should try} 36. Qb1 $16 Kf7 37. f5 gxf5 38. Qxf5) 36... Qd6 {[%emt 0:00:49]} (36... Bd8 $14) 37. Qc2 {[%emt 0:00:42]} Kf7 {[%emt 0:00:12]} 38. Qe2 {[%emt 0:00:15]} (38. f5 $16 g5 39. Re6) 38... Bd8 $14 {[%emt 0:00:23]} 39. Re5 {[%emt 0:01:38]} Qd3 {[%emt 0:01:04]} 40. Qa2+ {[%emt 0:00:00]} Kf8 {[%emt 0:00:00]} 41. h4 {[%emt 0:04:17]} Kg7 {[%emt 0:09:57]} 42. Qb2 {[%emt 0:03:17]} Kf7 {[%emt 0:00:38]} 43. Kg2 {[%emt 0:01:08]} Ng4 {[%emt 0:02:10]} ({Resist} 43... Kg8 44. f5 $16) 44. R5e2 {[%emt 0:04:43]} Qd5+ {[%emt 0:00:59]} (44... Bf6 $2 45. Qa2+ Kg7 46. f3 $18) 45. f3 {[%emt 0:01:58]} Bb6 {[%emt 0:00:12]} 46. Qc2 {[%emt 0:02:17][%cal Oh4h5] Hoping for h5!} (46. a4 $5 {[%cal Ra4a5]}) 46... h5 {[%emt 0:02:49]} 47. Qc3 {[%emt 0:01:03]} Rc7 {[%emt 0:01:27]} 48. Qb2 {[%emt 0:01:18] Threatens to win with Rd2.} Rd7 {[%emt 0:00:20]} 49. Qc2 {[%emt 0:01:01]} a6 {[%emt 0:01:11]} 50. Qc3 {[%emt 0:00:19]} Rc7 {[%emt 0:00:40] The board is on fire.} 51. Qb2 {[%emt 0:00:10] Rd2 is the strong threat.} Rd7 {[%emt 0:00:07]} 52. Qc2 {[%emt 0:00:03]} Rc7 {[%emt 0:00:25]} 53. Qe4 {[%emt 0:00:38] Prevents Ne3+.} (53. Qa4 $2 Ne3+ $1 {[%mdl 512]} 54. Rxe3 Bxe3 $19) 53... Nf6 {[%emt 0:01:02] Prevents Qe8+. Active counter play!} 54. Qe6+ {[%emt 0:00:56]} Qxe6 {[%emt 0:00:29]} 55. Rxe6 {[%emt 0:00:01]} Nd5 {[%emt 0:00:20]} 56. Rd6 {[%emt 0:01:04]} Ne3+ {[%emt 0:00:21]} 57. Kh3 {[%emt 0:00:17]} Ba7 {[%emt 0:00:49]} 58. Rd3 {[%emt 0:00:36]} Nc4 {[%emt 0:00:33]} (58... Nf5 $14) 59. g4 $16 {[%emt 0:00:34]} hxg4+ $2 {[%emt 0:00:25]} ({Black should play} 59... b5 $14) 60. fxg4 $18 {[%emt 0:00:02]} Nb2 {[%emt 0:00:18]} 61. Rf3 {[%emt 0:01:18]} Rd7 {[%emt 0:00:13]} (61... Bd4 $142 62. f5 Nc4 63. fxg6+ Kxg6 64. Re6+ Kh7) 62. f5 {[%emt 0:00:16]} Nd3 {[%emt 0:00:32]} 63. fxg6+ {[%emt 0:00:43]} Kxg6 {[%emt 0:00:01]} 64. Ref1 $2 {[%emt 0:00:20]} (64. h5+ $18 {has better winning chances.} Kh7 65. Re8) 64... Ne5 $16 {[%emt 0:01:30]} 65. h5+ {[%emt 0:00:29]} Kg7 {[%emt 0:00:08]} 66. Rf5 {[%emt 0:00:36]} Bb8 {[%emt 0:00:47]} 67. R1f4 {[%emt 0:00:48]} (67. Re1 $16 Nc6 68. Re3) 67... Rd3+ $11 {[%emt 0:00:18]} 68. Kg2 {[%emt 0:00:32] And now Re4 would win.} Rd2+ $2 {[%emt 0:00:46] [#] White now steadily converts the win.} (68... Ng6 $11 {and Black has nothing to worry.} 69. Rf7+ Kg8) 69. Kf1 $1 $18 {[%emt 0:00:17]} Ra2 {[%emt 0:00:36]} 70. Re4 {[%emt 0:00:10]} Rxa3 $2 {[%emt 0:00:28]} (70... Ra1+ 71. Re1 Rxa3) 71. Rfxe5 {[%emt 0:00:51]} ({Weaker is} 71. Rexe5 Bxe5 72. Rxe5 Rb3 $16) 71... Bxe5 {[%emt 0:00:02]} 72. Rxe5 {[%emt 0:00:04][%mdl 4096] Endgame KR-KR} Kh6 $2 {[%emt 0:00:59]} (72... Rb3 73. Re7+ Kh8) 73. Kf2 {[%emt 0:00:33]} Rb3 {[%emt 0:00:20]} 74. Re6+ {[%emt 0:00:05]} Kg5 {[%emt 0:00:31]} 75. Rg6+ {[%emt 0:00:01]} Kf4 {[%emt 0:00:07]} 76. h6 {[%emt 0:00:09]} Rb2+ {[%emt 0:00:35]} 77. Ke1 {[%emt 0:00:23]} Rh2 {[%emt 0:00:57]} 78. g5 {[%emt 0:00:13]} b5 {[%emt 0:00:31]} 79. Rg7 {[%emt 0:00:15]} Ke3 {[%emt 0:00:28]} 80. Kd1 {[%emt 0:00:44]} a5 {[%emt 0:00:30]} 81. bxa5 {[%emt 0:00:08] White wants to mate with a6.} b4 {[%emt 0:00:02]} 82. Kc1 {[%emt 0:00:39] White mates.} Kd3 {[%emt 0:00:14]} 83. Rc7 {[%emt 0:00:09]} b3 {[%emt 0:01:15]} 84. a6 {[%emt 0:00:13]} Ra2 {[%emt 0:00:29]} 85. h7 {[%emt 0:00:12]} Kd4 {[%emt 0:01:03][%mdl 32768] Weighted Error Value: White=0.14 (very precise) /Black=0.21 (precise) . Sensor Board Error (Ke4/e5)?} 0-1

[Event "2nd Serbia Open Masters 2022"]
[Site "Novi Sad"]
[Date "2022.06.28"]
[Round "1.46"]
[White "Masic, Predrag"]
[Black "Chanda, Sandipan"]
[Result "0-1"]
[ECO "A10"]
[WhiteElo "2247"]
[BlackElo "2467"]
[Annotator "TA"]
[PlyCount "70"]
[EventDate "2022.06.28"]
[EventType "swiss"]
[EventCountry "SRB"]
[SourceTitle "playchess.com"]
[Source "ChessBase"]
[SourceQuality "1"]
[TimeControl "40/5400+30:900+30"]

{[%evp 10,70,29,32,37,15,12,14,73,0,8,14,9,2,16,0,28,21,25,26,21,27,72,52,51,50,103,37,35,6,11,9,4,0,-4,-27,-12,-32,-20,-15,0,-18,0,0,16,22,74,62,44,-70,0,-20,0,-82,-81,-306,-294,-509,-500,-477,-405,-390,4]} 1. Nf3 {[%emt 0:00:16]} f5 {[%emt 0:02:23]} 2. c4 {[%emt 0:01:01]} Nf6 {[%emt 0:00:17]} 3. Nc3 {[%emt 0:00:22]} g6 {[%emt 0:00:09]} 4. g3 {[%emt 0:02:11]} Bg7 {[%emt 0:00:19]} 5. Bg2 {[%emt 0:00:11]} O-O {[%emt 0:00:10]} 6. O-O {[%emt 0:00:18]} e6 {[%emt 0:00:31] A10: English Opening: Unusual Replies for Black.} 7. d3 {[%emt 0:03:57]} Nc6 {[%emt 0:00:58]} 8. e4 {[%emt 0:03:26]} d6 {[%emt 0:00:15] [#] Against e5} (8... fxe4 $11 9. dxe4 d6) 9. Rb1 $146 {[%emt 0:14:29]} ({Better is} 9. exf5 $1 $16 exf5 10. Bd2) ({Predecessor:} 9. exf5 gxf5 10. d4 e5 11. dxe5 dxe5 12. Nh4 Nd4 13. Be3 c6 14. h3 Be6 15. f4 {1-0 (41) Szmetan,J (2404)-Mahia,G (2377) Dos Hermanas 2004}) 9... fxe4 {[%emt 0:05:30]} 10. dxe4 {[%emt 0:01:24]} Ng4 {[%emt 0:00:37]} 11. Ne2 {[%emt 0:05:38]} e5 {[%emt 0:05:22]} 12. h3 {[%emt 0:03:20]} Nh6 {[%emt 0:08:12]} 13. Nc3 {[%emt 0:01:29]} Nf7 {[%emt 0:01:50]} 14. Be3 {[%emt 0:01:05]} Be6 {[%emt 0:02:25]} 15. b3 {[%emt 0:01:05]} g5 {[%emt 0:19:24]} 16. Qd2 {[%emt 0:13:39][%cal Rf3g5]} h6 {[%emt 0:03:33]} 17. Nd5 {[%emt 0:03:12]} Ne7 {[%emt 0:01:28]} (17... Qd7 $14) 18. Rbc1 {[%emt 0:06:24]} (18. h4 $1 $16 {[%cal Rh4g5]}) 18... Ng6 $14 {[%emt 0:02:21]} 19. Kh2 {[%emt 0:01:14]} c6 {[%emt 0:03:45]} 20. Nc3 {[%emt 0:00:22]} Nf4 {[%emt 0:04:08]} 21. gxf4 {[%emt 0:01:30]} gxf4 {[%emt 0:06:44]} 22. Ne2 {[%emt 0:01:30][%cal Oe2f4]} fxe3 {[%emt 0:01:30]} 23. Qxe3 {[%emt 0:00:26]} h5 {[%emt 0:04:33] White must now prevent ...Bh6.} 24. Rcd1 {[%emt 0:03:03]} Bh6 {[%emt 0:00:13]} 25. Qc3 {[%emt 0:00:47]} Qf6 {[%emt 0:01:15]} 26. Nfg1 {[%emt 0:02:01]} Kh7 {[%emt 0:06:04]} 27. f4 {[%emt 0:00:58][%cal Bf2f4,Bf4f5][%mdl 32]} Rg8 {[%emt 0:00:10] [#]} (27... Rad8 $11 {remains equal.}) 28. f5 $1 $16 {[%emt 0:04:34]} Bd7 {[%emt 0:00:24]} 29. c5 {[%emt 0:05:42]} ({White should try} 29. Bf3 $14) 29... Rg7 $40 {[%emt 0:02:31][%mdl 128] Black has some attack.} (29... d5 $1 $15) 30. cxd6 {[%emt 0:01:11]} Rag8 {[%emt 0:01:17]} 31. Bh1 {[%emt 0:05:04]} (31. Bf3 $11) 31... Nxd6 $17 {[%emt 0:03:49][%cal Bf7d6,Bd6b5,Bb5d4][%mdl 32]} 32. Qf3 $2 {[%emt 0:07:37] Loses the game.} (32. a4 $17) 32... Nb5 $19 {[%emt 0:03:34]} ({Weaker is} 32... Be8 33. a4 $17) 33. Qxh5 $2 {[%emt 0:05:29]} (33. Qf2 {was necessary.} Nd4 34. Bf3) 33... Nd4 {[%emt 0:04:20]} 34. Nxd4 {[%emt 0:02:00] Threatens to win with Nde2.} exd4 {[%emt 0:00:03]} 35. Nf3 {[%emt 0:00:31] [#] Prevents Qe5+.} Bxf5 $2 {[%emt 0:01:32][%mdl 32768] Weighted Error Value: White=0.38/Black=0.18 (very precise) . Loss on time!?} 0-1

[Event "2nd Serbia Open Masters 2022"]
[Site "Novi Sad"]
[Date "2022.06.28"]
[Round "1.47"]
[White "Parkhov, Yair"]
[Black "Ravic, Nenad"]
[Result "1-0"]
[ECO "E73"]
[WhiteElo "2460"]
[BlackElo "2242"]
[Annotator "TA"]
[PlyCount "91"]
[EventDate "2022.06.28"]
[EventType "swiss"]
[EventCountry "SRB"]
[SourceTitle "playchess.com"]
[Source "ChessBase"]
[SourceQuality "1"]
[TimeControl "40/5400+30:900+30"]

{[%evp 13,91,43,72,68,65,60,64,67,89,79,77,76,75,53,53,51,62,54,66,68,100,73,86,85,79,83,83,82,107,98,144,144,197,208,166,170,191,182,187,77,85,79,85,75,62,62,86,79,69,71,81,56,78,78,77,45,51,8,8,8,8,8,22,22,76,76,76,75,29968,29972,29980,29981,29981,29982,29982,29983,29988,29987,29980,5398]} 1. d4 {[%emt 1:31:00]} Nf6 {[%emt 1:31:00]} 2. c4 {[%emt 0:00:30]} g6 {[%emt 0:00:30]} 3. Nc3 {[%emt 0:00:30]} Bg7 {[%emt 0:00:30]} 4. e4 {[%emt 0:00:30]} d6 {[%emt 0:00:30]} 5. Be2 {[%emt 0:00:30]} O-O {[%emt 0:00:30]} 6. Be3 {[%emt 0:00:30]} e5 {[%emt 0:00:30]} 7. d5 {[%emt 0:00:30]} a5 {[%emt 0:00:30]} 8. h4 {[%emt 0:00:30] E73: King's Indian: Averbakh Variation without 6...c5.} h5 {[%emt 0:00:30]} 9. f3 {[%emt 0:00:30] Inhibits Ng4.} Na6 {[%emt 0:00:30]} 10. Nh3 {[%emt 0:00:30] White is slightly better.} Bxh3 {[%emt 0:00:30]} 11. Rxh3 {[%emt 0:00:30]} Nc5 {[%emt 0:00:30]} 12. Qd2 {[%emt 0:00:30] [#]} a4 $146 {[%emt 0:00:30]} ({Predecessor:} 12... Qd7 13. O-O-O Na4 14. Nxa4 Qxa4 15. Kb1 b6 16. Qd3 Qd7 17. Rg1 Kh7 18. g4 Bh6 19. Bg5 Ng8 20. f4 hxg4 21. Bxg4 f5 22. Bf3 Kg7 23. exf5 Bxg5 24. hxg5 {1-0 (25) Seirawan,Y (2575)-Balashov,Y (2595) Toluca de Lerdo 1982}) 13. Rh2 {[%emt 0:00:30]} c6 {[%emt 0:00:30]} 14. g3 {[%emt 0:00:30]} (14. Rd1 {looks sharper.} Qa5 15. g3 Rfb8 16. Kf1) 14... cxd5 {[%emt 0:00:30]} 15. cxd5 {[%emt 0:00:30]} Rc8 {[%emt 0:00:30]} 16. Kf1 {[%emt 0:00:30]} Qa5 {[%emt 0:00:30]} 17. Nb5 {[%emt 0:00:30]} Qxd2 {[%emt 0:00:30]} 18. Bxd2 {[%emt 0:00:30]} Ne8 {[%emt 0:00:30]} 19. Rc1 {[%emt 0:00:30]} f5 {[%emt 0:00:30]} 20. exf5 {[%emt 0:00:30] White is more active.} gxf5 {[%emt 0:00:30]} 21. Bg5 {[%emt 0:00:30]} Bf6 {[%emt 0:00:30] Prevents Be7.} (21... Kf7 $142) 22. f4 $1 $16 {[%emt 0:00:30][%cal Bf3f4,Bf4e5][%mdl 32]} Rd8 {[%emt 0:00:30]} (22... exf4 $16 {was worth a try.} 23. gxf4 Bxb2) 23. fxe5 {[%emt 0:00:30]} Bxg5 {[%emt 0:00:30]} 24. hxg5 {[%emt 0:00:30]} f4 {[%emt 0:00:30]} 25. gxf4 {[%emt 0:00:30]} ({But not} 25. Rxh5 $6 fxg3+ 26. Kg1 Rf2 $14) 25... Rxf4+ {[%emt 0:00:30]} 26. Kg1 {[%emt 0:00:30]} (26. Rf2 $1 $18 {[%cal Rf2f4]} Rh4 27. Rg2) 26... Rf5 {[%emt 0:00:30]} 27. exd6 {[%emt 0:00:30]} Rxg5+ {[%emt 0:00:30]} 28. Rg2 {[%emt 0:00:30]} Rxg2+ 29. Kxg2 {[%emt 0:00:30]} b6 {[%emt 0:01:00]} 30. Rh1 {[%emt 0:00:30]} Nxd6 {[%emt 0:00:30]} 31. Rxh5 {[%emt 0:00:30]} Re8 {[%emt 0:00:30]} 32. Bf1 {[%emt 0:00:30]} ({Don't play} 32. Nxd6 $6 Rxe2+ 33. Kg3 Rxb2 $11) 32... Nxb5 {[%emt 0:00:30]} 33. Bxb5 $14 {[%emt 0:00:30][%mdl 4096] Endgame KRB-KRN} Re4 {[%emt 0:00:30]} 34. a3 {[%emt 0:00:30] Prevents Rb4.} (34. Kf3 {is interesting.} Rb4 35. d6 Kf7 36. d7) 34... Rd4 {[%emt 0:00:30]} 35. Rh6 {[%emt 0:00:30]} Rd2+ $1 {[%emt 0:00:30]} 36. Kf3 {[%emt 0:00:30]} Rxb2 {[%emt 0:00:30]} 37. Rxb6 {[%emt 0:00:30] Ke3 is the strong threat.} Rb3+ {[%emt 0:00:30]} 38. Kf4 {[%emt 0:00:30]} Rxa3 {[%emt 0:00:30]} (38... Nd7 $1 $11 {remains equal.} 39. Rb7 (39. Bxd7 Rxb6 40. Ke5 Kf7 $11) 39... Nc5) 39. d6 $1 $16 {[%emt 0:00:30][%cal Bd5d6,Bd6d7][%mdl 32] And now Bc4+ would win.} Kf7 {[%emt 0:00:30]} 40. Ke5 {[%emt 0:00:30] aiming for Bc4+.} Nd3+ $2 {[%emt 0:00:30][%mdl 8192] This costs Black the game.} (40... Rc3 $16) 41. Kd4 {[%emt 0:15:30] White mates.} Nf4 {[%emt 0:15:30]} 42. d7 {[%emt 0:00:30]} Ke7 {[%emt 0:00:30] [#]} 43. Rd6 $3 {[%emt 0:00:30][%mdl 512]} Kd8 {[%emt 0:00:30]} 44. Rf6 {[%emt 0:00:30]} Ne2+ {[%emt 0:00:30]} 45. Kc5 {[%emt 0:00:30]} Ke7 {[%emt 0:00:30] [#]} 46. Rf7+ $3 {[%emt 0:00:30][%mdl 512] Weighted Error Value: White=0.07 (flawless) /Black=0.27 (precise)} 1-0

[Event "2nd Serbia Open Masters 2022"]
[Site "Novi Sad"]
[Date "2022.06.28"]
[Round "1.48"]
[White "Gombocz, Ferenc Jr."]
[Black "Pranav Anand"]
[Result "0-1"]
[ECO "A13"]
[WhiteElo "2241"]
[BlackElo "2479"]
[Annotator "TA"]
[PlyCount "112"]
[EventDate "2022.06.28"]
[EventType "swiss"]
[EventCountry "SRB"]
[SourceTitle "playchess.com"]
[Source "ChessBase"]
[SourceQuality "1"]
[TimeControl "40/5400+30:900+30"]

{[%evp 14,112,14,17,22,13,18,10,18,15,17,12,16,0,0,-20,0,-16,0,-14,0,-54,-57,-65,-51,-47,-34,-42,-29,-17,0,0,0,-58,-71,-74,-81,-77,-75,-77,-75,-76,0,0,0,-3,-7,-108,-118,-110,-112,-107,-104,-120,-116,-108,-110,-114,-125,-89,-67,-119,-67,-68,-60,-66,-59,-52,-66,-122,-127,-107,-87,-83,-77,-138,-158,-93,-75,-271,-285,-302,-281,-308,-283,-427,-420,-408,-398,-385,-348,-600,-599,-599,-599,-739,-693,-879,-850,-658,-614]} 1. c4 {[%emt 0:00:05]} e6 {[%emt 0:00:22]} 2. g3 {[%emt 0:00:24]} Nf6 {[%emt 0:00:28]} 3. Bg2 {[%emt 0:00:36]} d5 {[%emt 0:00:06]} 4. Nf3 {[%emt 0:00:31]} d4 {[%emt 0:01:10]} 5. O-O {[%emt 0:01:17]} c5 {[%emt 0:00:05]} 6. e3 {[%emt 0:00:19]} Nc6 {[%emt 0:00:04]} 7. exd4 {[%emt 0:00:13]} cxd4 {[%emt 0:00:02]} 8. d3 {[%emt 0:00:17]} Bd6 {[%emt 0:00:03] A13: English Opening: 1...e6.} 9. Bg5 {[%emt 0:00:21]} h6 {[%emt 0:00:06]} 10. Bxf6 {[%emt 0:00:14]} Qxf6 {[%emt 0:00:03] The position is equal.} 11. Nbd2 {[%emt 0:00:17]} Qe7 {[%emt 0:00:51]} 12. a3 {[%emt 0:00:52]} a5 $1 {[%emt 0:00:06] Inhibits b4.} 13. Rc1 {[%emt 0:01:50]} O-O {[%emt 0:01:03]} 14. Qc2 {[%emt 0:07:42]} Rd8 {[%emt 0:07:31]} 15. Rfe1 {[%emt 0:08:19]} Bc7 {[%emt 0:02:53]} 16. c5 {[%emt 0:09:40]} a4 {[%emt 0:05:27]} 17. Nc4 {[%emt 0:14:14] [#]} (17. Qd1 $11) 17... Qxc5 $146 {[%emt 0:20:38]} ({Predecessor:} 17... Rd5 18. Nb6 Bxb6 19. cxb6 Rb5 20. Qc4 Rxb2 21. Nxd4 Rxb6 22. Nxc6 bxc6 23. Bxc6 Bb7 24. Bxb7 Rxb7 {½-½ (41) Oparin,G (2587)-Matlakov,M (2699) Yaroslavl 2018}) 18. Nce5 {[%emt 0:00:56]} Qxc2 {[%emt 0:58:32]} 19. Rxc2 {[%emt 0:00:13]} Nxe5 {[%emt 0:00:00]} 20. Nxe5 {[%emt 0:00:45]} Bd6 {[%emt 0:00:00]} 21. Nc4 {[%emt 0:01:59]} Ra6 {[%emt 0:00:00] Inhibits Nb6.} 22. Rec1 $1 {[%emt 0:02:43]} Bc5 {[%emt 0:00:00]} 23. Nd2 {[%emt 0:09:50]} (23. Ne5 $11 b6 24. Rc4) 23... b6 {[%emt 0:00:00]} 24. Ne4 {[%emt 0:00:13]} Bd7 {[%emt 0:00:00]} 25. Nxc5 {[%emt 0:01:21]} bxc5 {[%emt 0:00:00]} 26. Rxc5 {[%emt 0:00:48]} Rb6 {[%emt 0:00:00]} 27. R5c4 {[%emt 0:07:11]} Rxb2 {[%emt 0:00:00]} (27... Be8 $1 $17 28. Rc8 Rxc8 29. Rxc8 Kf8) 28. Rxd4 $11 {[%emt 0:02:32]} Rbb8 {[%emt 0:00:00]} 29. f4 {[%emt 0:11:33]} Kf8 {[%emt 0:00:00]} 30. Bf3 {[%emt 0:02:32] [#]} (30. Kf2 $1 $11) 30... Be8 $1 $17 {[%emt 0:00:00]} 31. Rxd8 {[%emt 0:03:26]} Rxd8 {[%emt 0:00:00][%mdl 4096] Endgame KRB-KRB} 32. Be2 {[%emt 0:01:51] [#]} Rb8 $1 {[%emt 0:00:00]} 33. Kf2 {[%emt 0:01:05]} Rb3 {[%emt 0:00:00]} 34. Ra1 {[%emt 0:00:12]} Bb5 {[%emt 0:00:00]} 35. Ke3 {[%emt 0:02:59]} Ke7 {[%emt 0:00:00]} 36. Ra2 {[%emt 0:01:38]} Kd6 {[%emt 0:00:00]} 37. Ra1 {[%emt 0:00:25]} (37. h4 $1 $15) 37... Rb2 {[%emt 0:00:00]} (37... g6 $17 38. Kd4 h5) 38. h4 $15 {[%emt 0:01:38]} Bc6 {[%emt 0:00:00]} 39. Rc1 {[%emt 0:03:59]} Rb3 {[%emt 0:00:00]} 40. Ra1 {[%emt 0:00:00]} Bb5 {[%emt 0:00:00]} 41. Bf1 {[%emt 0:06:21]} (41. g4 $15) 41... h5 $17 {[%emt 0:00:40]} 42. Be2 {[%emt 0:00:33]} f6 {[%emt 0:00:57]} 43. Bf1 {[%emt 0:01:28]} Be8 {[%emt 0:00:35]} 44. Be2 {[%emt 0:03:17]} (44. Ra2 $142) 44... Bg6 {[%emt 0:00:26]} 45. Ra2 {[%emt 0:01:18]} Bf5 {[%emt 0:04:43] Threatens to win with ...g6. Black is more active.} 46. Ra1 $2 {[%emt 0:01:33] Now White is beyond hope.} (46. Bxh5 $17 Rxd3+ 47. Kf2) 46... g6 $19 {[%emt 0:01:10]} 47. Ra2 {[%emt 0:01:36]} e5 {[%emt 0:00:19]} 48. fxe5+ {[%emt 0:00:05]} fxe5 {[%emt 0:00:04][%cal Bf6e5,Be5e4][%mdl 32]} ({Stronger than} 48... Kxe5 49. Ra1 $17) 49. Ra1 {[%emt 0:00:41]} (49. Kf2 {keeps fighting.}) 49... Kd5 {[%emt 0:02:03][%cal Of5d3]} 50. Bf3+ {[%emt 0:02:20]} e4 $1 {[%emt 0:01:00]} 51. Be2 {[%emt 0:00:09]} Ke5 {[%emt 0:03:11] White must now prevent ...Bg4.} 52. Ra2 $2 {[%emt 0:00:51]} (52. Kd2) 52... Bg4 {[%emt 0:02:51] aiming for ...Bxe2. Black is clearly winning.} 53. Bf1 {[%emt 0:00:24]} exd3 {[%emt 0:01:07] Strongly threatening ...Be6.} 54. Ra1 {[%emt 0:00:51]} Bf5 {[%emt 0:00:49]} 55. Bg2 {[%emt 0:01:16]} d2+ {[%emt 0:00:14]} 56. Kxd2 {[%emt 0:00:09]} Rb2+ {[%emt 0:00:02] Weighted Error Value: White=0.35/Black=0.06 (flawless)} 0-1